bitfinex/quotes_SOLUSD_20250126
["timestamp","ask_amount","ask_price","bid_price","bid_amount"]
[1737907784272,23.9169,255.31,255.18,3.9188]
[1737907784475,20.23962694,255.3,255.18,3.9188]
[1737907784763,23.776884,255.29,255.18,3.9188]
[1737907785465,3.9172,255.28,255.18,3.9188]
[1737907788072,27.694384,255.27,255.16,3.9189]
[1737907788265,0.23962694,255.26,255.16,3.9189]
[1737907788451,20.0,255.24,255.16,3.9189]
[1737907788646,20.0,255.24,255.12,3.9197]
[1737907789765,23.9179,255.24,255.11,9.7993]
[1737907795471,23.776884,255.23,255.11,9.7993]
[1737907795671,0.23962694,255.22,255.09,3.9201]
[1737907796177,20.0,255.2,255.09,3.9201]
[1737907796475,24.01651094,255.19,255.09,3.9201]
[1737907797945,3.9188,255.18,255.09,3.9201]
[1737907798145,0.23962694,255.17,255.09,3.9201]
[1737907798476,0.23962694,255.17,255.11,0.063]
[1737907800276,12.90953516,255.26,255.11,3.9827]
[1737907800455,20.0,255.23,255.11,3.9827]
[1737907800779,23.776884,255.22,255.11,3.9827]
[1737907801646,3.918,255.24,255.11,3.9827]
[1737907801647,20.0,255.25,255.11,3.9827]
[1737907801853,20.0,255.23,255.11,3.9827]
[1737907802354,23.776884,255.25,255.11,23.9827]
[1737907802559,12.4925,255.3,255.11,23.9827]
[1737907802560,0.03,255.28,255.11,23.9827]
[1737907802773,24.18692694,255.28,255.11,33.7823]
[1737907803559,23.776884,255.27,255.11,33.7823]
[1737907804149,27.694284,255.27,255.11,33.7823]
[1737907805348,3.9174,255.27,255.11,33.7823]
[1737907805744,23.776884,255.25,255.11,33.7823]
[1737907805941,0.23962694,255.24,255.11,33.7823]
[1737907806176,0.23962694,255.24,255.11,23.9827]
[1737907806343,20.0,255.22,255.11,3.9827]
[1737907806552,0.23962694,255.21,255.11,3.9827]
[1737907808154,4.15702694,255.27,255.11,13.7823]
[1737907808962,27.93391094,255.27,255.11,13.7823]
[1737907809173,23.776884,255.26,255.11,13.7823]
[1737907809695,3.9174,255.27,255.11,13.7823]
[1737907812455,3.9174,255.27,255.14,20.0]
[1737907812659,3.9174,255.27,255.15,3.9192]
[1737907812854,23.776884,255.26,255.15,3.9192]
[1737907813074,0.23962694,255.25,255.15,3.9192]
[1737907813986,3.9176,255.26,255.15,3.9192]
[1737907814290,27.724184,255.28,255.15,3.9192]
[1737907814701,0.03,255.28,255.15,13.7173]
[1737907815590,0.03,255.28,255.15,9.7981]
[1737907816483,0.03,255.28,255.16,8.1017]
[1737907817367,0.03,255.28,255.19,20.0]
[1737907817778,0.03,255.28,255.2,3.9184]
[1737907822372,0.03,255.28,255.22,3.9181]
[1737907823396,0.03,255.28,255.22,13.7135]
[1737907823607,0.03,255.28,255.26,8.0699]
[1737907824681,0.03,255.28,255.27,3.9174]
[1737907828498,0.03,255.28,255.26,1.6453]
[1737907829506,0.03,255.28,255.21,3.9182]
[1737907829902,0.03,255.28,255.19,3.9185]
[1737907830081,0.03,255.28,255.17,21.6453]
[1737907830409,0.03,255.28,255.17,25.5641]
[1737907834612,0.03,255.28,255.17,25.6271]
[1737907835010,0.26962694,255.28,255.17,25.6271]
[1737907835500,0.26962694,255.28,255.17,5.6271]
[1737907835682,4.18682694,255.28,255.17,5.6271]
[1737907839612,3.9175,255.26,255.17,3.9818]
[1737907839817,4.15712694,255.26,255.17,3.9818]
[1737907840890,23.776884,255.22,255.17,0.063]
[1737907841097,20.0,255.19,255.17,0.063]
[1737907841308,0.23962694,255.18,255.17,0.063]
[1737907842316,24.01651094,255.18,255.17,0.063]
[1737907843215,6.74932694,255.18,255.17,0.063]
[1737907844795,13.19382694,255.18,255.17,0.063]
[1737907847622,14.19382694,255.18,255.17,0.063]
[1737907847922,14.19382694,255.18,255.11,0.063]
[1737907847923,22.0,255.14,255.11,0.063]
[1737907848123,24.01651094,255.13,255.11,0.063]
[1737907848295,1.0,255.12,255.11,0.063]
[1737907848500,24.776884,255.12,255.11,0.063]
[1737907849533,23.776884,255.12,255.11,0.063]
[1737907850425,24.776884,255.12,255.11,0.063]
[1737907850602,28.696584,255.12,255.11,0.063]
[1737907855002,27.696584,255.12,255.11,0.063]
[1737907860435,3.9197,255.12,255.11,0.063]
[1737907861538,20.23962694,255.14,255.11,0.063]
[1737907862119,20.0,255.13,255.11,0.063]
[1737907862435,20.23962694,255.12,255.11,0.063]
[1737907863718,44.01651094,255.12,255.11,0.063]
[1737907869047,20.0,255.15,255.11,0.063]
[1737907869257,20.23962694,255.16,255.11,0.063]
[1737907869258,0.23962694,255.14,255.11,0.063]
[1737907870146,20.23962694,255.14,255.11,0.063]
[1737907870640,0.23962694,255.14,255.11,0.063]
[1737907870953,20.0,255.12,255.11,0.063]
[1737907874445,0.23962694,255.14,255.11,0.063]
[1737907875558,4.15902694,255.14,255.11,0.063]
[1737907878456,4.15902694,255.14,255.04,6.3276]
[1737907878658,4.15902694,255.14,255.05,3.9207]
[1737907883537,4.15902694,255.14,255.05,3.9837]
[1737907885263,23.776884,255.13,255.05,0.063]
[1737907885436,0.23962694,255.12,255.05,0.063]
[1737907887534,20.0,255.09,255.05,0.063]
[1737907887734,0.23962694,255.08,255.05,0.063]
[1737907889148,4.15992694,255.08,255.05,0.063]
[1737907890044,23.776884,255.07,255.05,0.063]
[1737907890249,0.23962694,255.06,255.05,0.063]
[1737907891134,27.93711094,255.06,255.05,0.063]
[1737907891357,28.93711094,255.06,255.05,0.063]
[1737907891662,29.93711094,255.06,255.05,0.063]
[1737907892564,31.58951094,255.06,255.05,0.063]
[1737907892762,20.0,255.02,254.92,0.063]
[1737907892943,5.9226,254.93,254.92,0.063]
[1737907893263,5.9226,254.93,254.91,0.063]
[1737907893264,23.776884,254.92,254.91,0.063]
[1737907894850,4.16222694,254.93,254.91,0.063]
[1737907895050,20.0,254.94,254.91,0.063]
[1737907895838,20.23962694,254.93,254.91,0.063]
[1737907896961,20.0,254.92,254.91,0.063]
[1737907897156,20.0,254.88,254.85,0.063]
[1737907897371,24.01651094,254.87,254.85,0.063]
[1737907898368,27.94001094,254.87,254.85,0.063]
[1737907899862,24.01651094,254.87,254.85,0.063]
[1737907900171,4.16252694,254.91,254.85,0.063]
[1737907901368,0.23962694,254.91,254.85,0.063]
[1737907901573,20.0,254.9,254.85,0.063]
[1737907902296,0.23962694,254.89,254.85,0.063]
[1737907903381,0.23962694,254.91,254.85,0.063]
[1737907903767,0.23962694,254.91,254.85,3.9868]
[1737907903970,0.23962694,254.96,254.85,3.9868]
[1737907904175,20.0,254.98,254.85,3.9868]
[1737907904991,0.23962694,254.97,254.85,3.9868]
[1737907905357,24.01651094,254.97,254.85,3.9868]
[1737907905561,27.93851094,254.97,254.85,3.9868]
[1737907907481,24.01651094,254.97,254.85,3.9868]
[1737907907683,0.23962694,254.97,254.85,3.9868]
[1737907914291,0.23962694,254.97,254.86,1.5823]
[1737907914470,0.23962694,254.97,254.87,3.9235]
[1737907919200,20.0,254.94,254.86,1.5823]
[1737907919369,27.93851094,254.97,254.86,1.5823]
[1737907919370,0.23962694,254.96,254.86,5.5059]
[1737907919706,20.0,254.98,254.86,5.5059]
[1737907919863,0.23962694,254.97,254.86,5.5059]
[1737907920063,0.26962694,254.97,254.86,5.5059]
[1737907920491,0.03,254.97,254.87,6.62]
[1737907920897,0.03,254.97,254.9,20.0]
[1737907921276,0.03,254.97,254.91,3.9229]
[1737907924173,0.03,254.97,254.87,6.62]
[1737907924498,0.03,254.97,254.87,10.5435]
[1737907924795,20.03,254.97,254.87,10.5435]
[1737907924971,0.23962694,254.96,254.87,6.62]
[1737907925170,0.23962694,254.96,254.86,1.5823]
[1737907925371,23.776884,254.94,254.86,1.5823]
[1737907925571,0.23962694,254.93,254.85,0.063]
[1737907926006,4.16232694,254.93,254.85,0.063]
[1737907928409,20.0,254.95,254.86,3.9237]
[1737907928699,20.23962694,254.95,254.86,3.9237]
[1737907931001,0.23962694,254.95,254.86,3.9237]
[1737907932594,0.23962694,254.95,254.86,3.9867]
[1737907933295,20.0,254.92,254.86,0.063]
[1737907933600,0.23962694,254.91,254.86,0.063]
[1737907934804,4.16262694,254.91,254.86,0.063]
[1737907943915,4.16262694,254.91,254.85,0.0001]
[1737907943916,2.0,254.86,254.85,0.0001]
[1737907944219,2.0,254.86,254.73,0.063]
[1737907944220,20.0,254.82,254.73,0.063]
[1737907944511,0.23962694,254.81,254.73,0.063]
[1737907944717,20.0,254.82,254.73,3.9887]
[1737907945200,0.23962694,254.81,254.73,3.9887]
[1737907945608,0.23962694,254.81,254.73,0.063]
[1737907945799,24.01651094,254.81,254.73,0.063]
[1737907946420,20.0,254.78,254.73,0.063]
[1737907946624,0.23962694,254.77,254.73,0.063]
[1737907946801,4.16472694,254.77,254.73,0.063]
[1737907947217,0.23962694,254.77,254.73,0.063]
[1737907949013,0.23962694,254.81,254.73,3.9886]
[1737907949216,20.0,254.82,254.73,3.9886]
[1737907949424,0.23962694,254.81,254.73,3.9886]
[1737907949817,81.5,254.8,254.73,3.9886]
[1737907950024,0.23962694,254.79,254.73,0.063]
[1737907952229,81.5,254.8,254.73,3.9886]
[1737907953428,81.5,254.8,254.74,1.54]
[1737907954335,81.5,254.8,254.75,3.9254]
[1737907955829,81.5,254.86,254.75,3.9254]
[1737907956731,81.5,254.86,254.76,6.4344]
[1737907957940,81.5,254.86,254.77,3.9251]
[1737907959725,81.5,254.86,254.77,13.7378]
[1737907959908,0.03,254.91,254.77,13.7378]
[1737907960835,0.23962694,254.9,254.77,13.7378]
[1737907962212,23.776884,254.89,254.77,3.9251]
[1737907962414,0.23962694,254.88,254.77,3.9251]
[1737907962827,20.0,254.86,254.77,3.9251]
[1737907966947,0.23962694,254.85,254.74,1.54]
[1737907967127,0.23962694,254.85,254.75,3.9254]
[1737907968543,20.0,254.83,254.75,3.9254]
[1737907968741,0.23962694,254.82,254.75,3.9254]
[1737907969115,20.23962694,254.83,254.75,3.9254]
[1737907970422,81.5,254.82,254.73,3.9886]
[1737907970628,0.23962694,254.81,254.73,3.9886]
[1737907971545,81.5,254.82,254.73,3.9886]
[1737907974950,0.23962694,254.81,254.73,3.9886]
[1737907975952,81.5,254.82,254.73,3.9886]
[1737907977238,0.23962694,254.81,254.73,3.9886]
[1737907979246,81.5,254.82,254.73,13.8029]
[1737907981549,81.5,254.82,254.76,20.0]
[1737907982149,81.5,254.82,254.74,1.5077]
[1737907982455,81.5,254.82,254.77,9.8127]
[1737907982754,81.5,254.82,254.78,6.468]
[1737907983054,0.03,254.85,254.78,6.468]
[1737907983950,0.03,254.85,254.79,13.7368]
[1737907985541,0.03,254.85,254.79,3.9248]
[1737907985756,0.26962694,254.85,254.79,3.9248]
[1737907987071,0.26962694,254.85,254.75,9.8133]
[1737907987272,0.26962694,254.85,254.75,3.9254]
[1737907990573,24.04651094,254.85,254.75,3.9254]
[1737907991270,0.03,254.85,254.75,13.7389]
[1737907991448,0.03,254.85,254.75,13.8019]
[1737907992543,0.03,254.85,254.77,13.7378]
[1737907993573,0.03,254.85,254.8,20.0]
[1737907993776,0.03,254.85,254.81,3.9244]
[1737907999952,0.03,254.85,254.76,13.7382]
[1737908002059,0.03,254.85,254.79,20.0]
[1737908003485,0.03,254.85,254.76,13.7382]
[1737908003678,0.03,254.85,254.76,13.8012]
[1737908004187,0.03,254.85,254.76,3.9882]
[1737908004353,0.23962694,254.84,254.76,3.9882]
[1737908004772,101.5,254.83,254.76,3.9882]
[1737908004953,0.23962694,254.82,254.76,3.9882]
[1737908005378,81.5,254.81,254.76,0.063]
[1737908005577,0.23962694,254.8,254.76,0.063]
[1737908007876,24.01651094,254.8,254.76,0.063]
[1737908008378,27.94121094,254.8,254.76,0.063]
[1737908008587,23.776884,254.78,254.76,0.063]
[1737908008768,105.51651094,254.77,254.76,0.063]
[1737908008973,105.276884,254.77,254.76,0.063]
[1737908009594,109.201984,254.77,254.76,0.063]
[1737908012292,27.701984,254.77,254.76,0.063]
[1737908012785,27.94161094,254.77,254.76,0.063]
[1737908013294,67.79331094,254.77,254.76,0.063]
[1737908013789,23.776884,254.76,254.75,0.063]
[1737908014293,20.0,254.67,254.66,0.063]
[1737908014478,44.01651094,254.67,254.66,0.063]
[1737908015174,49.49331094,254.67,254.66,0.063]
[1737908016493,23.776884,254.66,254.51,0.063]
[1737908016789,23.776884,254.55,254.51,0.063]
[1737908016989,0.23962694,254.54,254.51,0.063]
[1737908017289,105.276884,254.53,254.51,0.063]
[1737908017492,0.23962694,254.52,254.51,0.063]
[1737908019085,27.94541094,254.52,254.51,0.063]
[1737908019300,34.24691094,254.52,254.51,0.063]
[1737908020801,20.0,254.5,254.49,0.02138459]
[1737908020965,44.01651094,254.5,254.49,0.02138459]
[1737908022293,74.01651094,254.5,254.49,0.02138459]
[1737908022473,44.01651094,254.5,254.49,0.02138459]
[1737908028791,23.776884,254.49,254.47,0.063]
[1737908028992,81.73962694,254.48,254.47,0.063]
[1737908029193,81.5,254.48,254.47,0.063]
[1737908030314,105.276884,254.48,254.47,0.063]
[1737908033101,23.776884,254.48,254.47,0.063]
[1737908033305,24.01651094,254.48,254.47,0.063]
[1737908033714,25.01651094,254.48,254.47,0.063]
[1737908034316,20.0,254.41,254.4,0.03]
[1737908034614,44.01651094,254.41,254.4,0.03]
[1737908038002,0.23962694,254.41,254.4,0.03]
[1737908038218,0.23962694,254.42,254.4,0.03]
[1737908039223,20.0,254.41,254.4,0.03]
[1737908039528,20.23962694,254.41,254.4,0.03]
[1737908039822,0.23962694,254.41,254.4,0.03]
[1737908040426,0.23962694,254.42,254.4,0.03]
[1737908042212,24.01651094,254.42,254.4,0.03]
[1737908043107,0.23962694,254.42,254.4,0.03]
[1737908043322,0.23962694,254.44,254.4,0.03]
[1737908044229,0.23962694,254.45,254.4,0.03]
[1737908044525,20.0,254.43,254.4,0.03]
[1737908045025,0.23962694,254.45,254.42,6.3869]
[1737908045226,0.03,254.5,254.43,3.9303]
[1737908045409,0.03,254.5,254.43,13.7561]
[1737908046108,0.03,254.5,254.44,0.39290003]
[1737908046821,0.03,254.5,254.44,24.16978403]
[1737908047016,0.03,254.5,254.45,1.598]
[1737908047221,0.03,254.5,254.47,3.9297]
[1737908047434,0.03,254.5,254.48,0.39282206]
[1737908047818,81.5,254.64,254.49,6.3869]
[1737908048139,20.0,254.66,254.52,20.0]
[1737908048321,81.5,254.69,254.54,1.598]
[1737908049629,81.5,254.69,254.55,3.9285]
[1737908050110,81.5,254.69,254.56,0.39271738]
[1737908051536,81.5,254.69,254.57,3.9281]
[1737908053836,20.0,254.66,254.57,3.9281]
[1737908054724,20.0,254.65,254.54,1.598]
[1737908055035,23.9269,254.65,254.55,3.9285]
[1737908055538,20.0,254.65,254.55,3.9285]
[1737908061346,20.03,254.65,254.55,3.9285]
[1737908063345,0.03,254.65,254.55,13.7497]
[1737908064162,0.03,254.65,254.55,3.9285]
[1737908065845,81.5,254.64,254.55,3.9285]
[1737908068244,85.4271,254.64,254.55,3.9285]
[1737908070548,85.4271,254.64,254.54,1.598]
[1737908070756,85.4271,254.64,254.54,5.5266]
[1737908070927,85.4271,254.64,254.54,1.598]
[1737908071542,81.5,254.63,254.54,1.598]
[1737908071728,81.5,254.62,254.54,1.598]
[1737908072045,81.5,254.61,254.49,6.3869]
[1737908072244,20.0,254.57,254.49,10.3163]
[1737908072465,23.9283,254.57,254.49,6.3869]
[1737908072748,20.0,254.56,254.5,0.063]
[1737908073052,20.0,254.52,254.5,0.063]
[1737908073554,20.0,254.51,254.5,0.063]
[1737908074650,43.776884,254.51,254.5,0.063]
[1737908081256,73.776884,254.51,254.5,0.063]
[1737908081847,20.0,254.47,254.4,0.03]
[1737908083156,23.9297,254.47,254.4,0.03]
[1737908086234,43.776884,254.46,254.4,0.03]
[1737908086544,20.0,254.42,254.4,0.03]
[1737908086743,81.5,254.41,254.4,0.03]
[1737908090471,81.5,254.48,254.4,0.03]
[1737908094989,81.5,254.48,254.41,6.2618]
[1737908096277,81.5,254.48,254.42,3.9305]
[1737908098050,81.5,254.48,254.42,13.7567]
[1737908098473,0.03,254.5,254.42,13.7567]
[1737908098651,0.03,254.5,254.44,1.6428]
[1737908099863,0.03,254.5,254.45,13.7551]
[1737908102877,0.03,254.5,254.46,23.776884]
[1737908103082,0.03,254.5,254.47,0.3928446]
[1737908103249,0.03,254.5,254.46,23.776884]
[1737908103675,0.03,254.5,254.45,13.7551]
[1737908107057,81.5,254.56,254.46,25.1698132]
[1737908107248,0.03,254.57,254.48,23.776884]
[1737908107445,0.03,254.57,254.49,0.39278719]
[1737908107858,0.03,254.57,254.52,25.316384]
[1737908108067,0.03,254.57,254.53,0.3927347]
[1737908109589,0.03,254.57,254.55,23.776884]
[1737908109759,0.0001,254.57,254.55,24.16960669]
[1737908110192,0.0001,254.57,254.56,30.045584]
[1737908110883,0.03,254.65,254.6,20.0]
[1737908111056,0.03,254.65,254.61,24.16950679]
[1737908111450,0.03,254.65,254.62,3.9274]
[1737908112182,0.03,254.65,254.63,24.16951547]
[1737908113789,0.03,254.65,254.64,3.9271]
[1737908114484,0.03,254.73,254.64,3.9271]
[1737908114485,0.03,254.73,254.65,23.776884]
[1737908114671,0.03,254.73,254.67,23.776884]
[1737908114991,0.03,254.73,254.68,0.39250681]
[1737908116170,0.03,254.73,254.69,3.9263]
[1737908116890,0.03,254.73,254.63,3.9272]
[1737908118354,81.5,254.72,254.63,3.9272]
[1737908118789,78.83538432,254.72,254.63,3.9272]
[1737908119174,78.83538432,254.71,254.63,3.9272]
[1737908119365,20.0,254.68,254.61,3.9274]
[1737908119861,20.0,254.68,254.57,3.9281]
[1737908120065,20.0,254.67,254.57,3.9281]
[1737908120779,20.0,254.67,254.63,0.063]
[1737908121984,20.0,254.68,254.63,0.063]
[1737908122590,20.0,254.68,254.63,3.9902]
[1737908122790,78.83538432,254.71,254.63,3.9902]
[1737908125015,82.76148432,254.71,254.63,0.063]
[1737908125206,78.83538432,254.7,254.63,0.063]
[1737908127804,78.83538432,254.7,254.63,3.9902]
[1737908128193,78.83538432,254.7,254.64,23.776884]
[1737908129190,78.83538432,254.7,254.65,13.7442]
[1737908130098,78.83538432,254.7,254.66,25.332784]
[1737908131080,0.03,254.73,254.66,25.332784]
[1737908131990,0.03,254.73,254.67,3.9266]
[1737908133009,0.03,254.73,254.67,13.7432]
[1737908135788,0.03,254.73,254.69,3.9263]
[1737908136205,0.03,254.73,254.7,0.39250258]
[1737908137699,0.03,254.73,254.71,3.926]
[1737908138915,0.03,254.76,254.72,24.16936011]
[1737908139417,0.03,254.76,254.72,25.16936011]
[1737908140214,0.03,254.83,254.74,23.776884]
[1737908140403,0.03,254.83,254.78,23.776884]
[1737908140598,0.03,254.83,254.79,0.39235324]
[1737908142010,0.03,254.83,254.8,3.9246]
[1737908144328,0.03,254.83,254.76,23.776884]
[1737908144516,0.03,254.83,254.77,0.39238733]
[1737908145992,0.03,254.83,254.78,3.9249]
[1737908152430,0.03,254.83,254.76,33.98239089]
[1737908152732,0.03,254.83,254.77,3.9251]
[1737908155841,0.03,254.83,254.78,24.16928749]
[1737908156400,0.03,254.83,254.79,3.9248]
[1737908156607,0.03,254.83,254.8,24.16924741]
[1737908157933,0.03,254.83,254.81,3.9244]
[1737908158532,0.03,254.83,254.77,3.9251]
[1737908162839,0.03,254.83,254.77,13.7378]
[1737908164617,0.03,254.83,254.77,3.9251]
[1737908165720,0.03,254.83,254.79,3.9248]
[1737908166045,0.03,254.83,254.8,0.39235216]
[1737908166342,0.03,254.83,254.79,3.9248]
[1737908168741,0.03,254.83,254.81,3.9244]
[1737908170323,0.03,254.83,254.79,3.9248]
[1737908171232,0.03,254.85,254.8,24.16923415]
[1737908171422,0.03,254.85,254.83,20.0]
[1737908171624,0.03,254.85,254.84,0.39229198]
[1737908171838,0.03,254.85,254.84,24.16917598]
[1737908173544,0.03,254.85,254.84,28.09317598]
[1737908173748,0.03,254.85,254.84,4.31629198]
[1737908173925,0.03,254.85,254.84,3.924]
[1737908178559,0.03,254.85,254.82,3.9243]
[1737908181256,0.03,254.85,254.83,0.39230836]
[1737908181467,0.03,254.91,254.84,23.776884]
[1737908181762,0.03,254.91,254.83,0.063]
[1737908181935,0.03,254.85,254.83,0.063]
[1737908183349,0.03,254.85,254.84,3.924]
[1737908186637,0.03,254.85,254.83,0.063]
[1737908190959,0.03,254.85,254.84,3.924]
[1737908195960,0.03,254.85,254.83,0.063]
[1737908204278,0.03,254.85,254.83,0.063]
[1737908204471,78.83538432,254.84,254.83,0.063]
[1737908206475,82.75938432,254.84,254.83,0.063]
[1737908207554,3.924,254.84,254.83,0.063]
[1737908211777,20.0,254.84,254.83,0.063]
[1737908217186,0.03,254.85,254.83,0.063]
[1737908217762,0.03,254.85,254.83,3.9871]
[1737908219685,0.03,254.85,254.83,0.063]
[1737908226098,0.03,254.85,254.83,3.9871]
[1737908226472,0.03,254.85,254.83,0.063]
[1737908228600,20.0,254.84,254.83,0.063]
[1737908228799,43.776884,254.84,254.83,0.063]
[1737908229185,50.413084,254.84,254.83,0.063]
[1737908229896,81.413084,254.84,254.83,0.063]
[1737908230113,20.0,254.8,254.76,0.063]
[1737908230280,20.0,254.77,254.76,0.063]
[1737908230679,23.9251,254.77,254.76,0.063]
[1737908231195,20.0,254.79,254.76,0.063]
[1737908231581,20.0,254.77,254.76,0.063]
[1737908241112,43.776884,254.77,254.76,0.063]
[1737908244017,47.701984,254.77,254.76,0.063]
[1737908244312,2.64,254.79,254.76,0.063]
[1737908244718,22.64,254.79,254.76,0.063]
[1737908245096,20.0,254.79,254.76,0.063]
[1737908246193,20.0,254.8,254.76,0.063]
[1737908247319,20.0,254.82,254.76,0.063]
[1737908247694,3.9244,254.81,254.76,0.063]
[1737908250502,20.03,254.83,254.76,0.063]
[1737908250696,20.03,254.83,254.76,3.9882]
[1737908251303,0.03,254.83,254.76,3.9882]
[1737908252115,0.03,254.83,254.76,13.8013]
[1737908252513,0.03,254.83,254.77,23.776884]
[1737908252827,0.03,254.83,254.78,8.0523]
[1737908253908,0.03,254.83,254.78,1.5702]
[1737908255008,0.03,254.83,254.78,5.4951]
[1737908257227,0.03,254.83,254.76,3.9881]
[1737908257430,0.03,254.83,254.76,0.063]
[1737908260307,81.5,254.82,254.76,0.063]
[1737908263214,20.0,254.79,254.76,0.063]
[1737908264646,81.5,254.78,254.76,0.063]
[1737908264939,81.5,254.77,254.76,0.063]
[1737908265134,3.9246,254.8,254.76,0.063]
[1737908266943,23.9243,254.82,254.76,0.063]
[1737908274846,0.03,254.83,254.76,0.063]
[1737908275054,81.5,254.82,254.76,3.9882]
[1737908278155,81.5,254.82,254.76,13.8013]
[1737908279247,81.5,254.82,254.76,3.9882]
[1737908282458,81.5,254.81,254.76,3.9882]
[1737908287759,81.5,254.81,254.76,13.8013]
[1737908288358,0.03,254.83,254.76,13.8013]
[1737908294063,0.03,254.83,254.76,3.9882]
[1737908295564,20.0,254.81,254.76,3.9882]
[1737908295950,81.5,254.8,254.76,0.063]
[1737908300253,81.5,254.79,254.76,0.063]
[1737908302771,81.5,254.79,254.76,3.9881]
[1737908306573,0.03,254.83,254.76,3.9881]
[1737908307652,0.03,254.83,254.77,23.776884]
[1737908307854,0.03,254.83,254.79,1.5863]
[1737908308061,0.03,254.83,254.8,0.39232712]
[1737908309477,0.03,254.83,254.81,3.9244]
[1737908311766,0.03,254.83,254.82,0.39234084]
[1737908312245,0.03,254.85,254.82,20.39234084]
[1737908312444,0.03,254.85,254.84,3.924]
[1737908313676,81.5,254.96,254.84,13.734]
[1737908313862,81.5,254.96,254.85,0.39224521]
[1737908314457,81.5,254.96,254.87,23.776884]
[1737908314665,81.5,254.96,254.88,0.39219717]
[1737908315267,0.03,254.97,254.9,20.0]
[1737908315571,0.03,254.97,254.92,13.7296]
[1737908315774,0.03,254.97,254.93,0.39214864]
[1737908316283,0.03,254.97,254.93,24.16903264]
[1737908317485,0.03,254.97,254.93,0.39214864]
[1737908317782,0.03,254.97,254.94,3.9224]
[1737908318284,0.03,254.97,254.95,0.39213329]
[1737908319884,0.03,254.97,254.96,3.9221]
[1737908321481,0.03,254.97,254.93,0.3921538]
[1737908321670,0.03,254.97,254.94,3.9224]
[1737908322564,0.03,254.97,254.95,0.39213988]
[1737908324082,0.03,254.97,254.96,3.9221]
[1737908332394,0.03,254.97,254.96,23.9221]
[1737908333198,0.03,254.99,254.96,23.9221]
[1737908333403,0.03,254.99,254.97,24.16893732]
[1737908334281,0.03,254.99,254.98,3.9218]
[1737908336704,0.03,254.99,254.96,3.9221]
[1737908337492,0.03,254.99,254.97,0.39208224]
[1737908338918,0.03,254.99,254.98,3.9218]
[1737908340206,0.03,254.99,254.94,3.9224]
[1737908340404,0.03,254.99,254.95,0.3921386]
[1737908340879,0.03,254.99,254.95,24.1690226]
[1737908342393,0.03,254.99,254.96,3.9221]
[1737908342731,0.03,254.99,254.98,20.0]
[1737908342884,0.03,254.99,254.98,43.776884]
[1737908344080,0.03,254.99,254.97,20.39205329]
[1737908344904,0.03,254.99,254.98,23.9218]
[1737908345411,0.03,255.09,254.99,20.0]
[1737908345611,0.03,255.09,255.0,0.3920128]
[1737908347015,0.03,255.09,255.01,3.9214]
[1737908349525,20.0,255.07,254.95,3.9223]